bitfinex/quotes_SOLUSD_20251118
["timestamp","ask_amount","ask_price","bid_price","bid_amount"]
[1763426180095,10.1707723,130.32,130.3,6.38831014]
[1763426181110,0.69,130.32,130.3,6.38831014]
[1763426181291,0.69,130.34,130.31,6.38831014]
[1763426181609,10.1707723,130.36,130.33,6.38831014]
[1763426181770,0.69,130.36,130.34,6.38831014]
[1763426182578,0.69,130.36,130.33,6.38831014]
[1763426183007,10.1707723,130.36,130.34,6.38831014]
[1763426183811,10.1707723,130.35,130.33,6.38831014]
[1763426184376,9.4807723,130.36,130.33,6.38831014]
[1763426184579,10.1707723,130.36,130.34,6.38831014]
[1763426184913,0.69,130.35,130.34,6.38831014]
[1763426185277,9.4807723,130.36,130.34,6.38831014]
[1763426185596,10.1707723,130.36,130.34,6.38831014]
[1763426186014,9.4807723,130.36,130.34,6.38831014]
[1763426186315,28.2917323,130.38,130.35,6.38831014]
[1763426186485,27.6017323,130.38,130.35,6.38831014]
[1763426186678,28.2917323,130.38,130.35,6.38831014]
[1763426186876,28.2917323,130.38,130.36,6.38831014]
[1763426187297,0.69,130.37,130.36,6.38831014]
[1763426187880,0.69,130.37,130.35,6.38831014]
[1763426187881,10.1707723,130.37,130.35,6.38831014]
[1763426188097,9.4807723,130.36,130.34,6.38831014]
[1763426188289,9.4807723,130.35,130.34,6.38831014]
[1763426188601,10.1707723,130.36,130.33,8.50184313]
[1763426188782,10.1707723,130.36,130.35,6.44972753]
[1763426189600,10.1707723,130.36,130.34,6.44972753]
[1763426190011,0.69,130.35,130.34,6.44972753]
[1763426190204,10.1707723,130.35,130.34,6.44972753]
[1763426190408,9.4807723,130.36,130.33,8.50184313]
[1763426190604,10.1707723,130.36,130.35,6.45108356]
[1763426190808,9.4807723,130.36,130.35,6.45108356]
[1763426191202,111.26351747,130.44,130.35,6.45108356]
[1763426191406,9.4807723,130.38,130.36,6.45108356]
[1763426191832,0.69,130.38,130.36,6.45108356]
[1763426192017,18.12096,130.37,130.36,6.45108356]
[1763426192199,109.26351747,130.44,130.37,0.67]
[1763426192200,0.69,130.41,130.37,0.67]
[1763426192398,0.69,130.41,130.38,6.45108356]
[1763426192607,0.2,130.44,130.38,7.12108356]
[1763426192608,10.1707723,130.43,130.38,7.12108356]
[1763426192929,28.2917323,130.43,130.4,6.45108356]
[1763426193224,0.69,130.42,130.4,6.45108356]
[1763426193622,0.69,130.42,130.41,6.45108356]
[1763426193833,10.1707723,130.42,130.4,6.45108356]
[1763426194036,18.12096,130.4,130.34,18.29067082]
[1763426194201,0.69,130.41,130.35,9.17184313]
[1763426194402,27.6017323,130.4,130.35,9.17184313]
[1763426194928,27.6017323,130.4,130.36,18.96067082]
[1763426195132,10.1707723,130.41,130.36,18.96067082]
[1763426195501,9.4807723,130.41,130.36,18.29067082]
[1763426195725,18.12096,130.42,130.38,9.78882769]
[1763426195926,9.4807723,130.43,130.39,0.67]
[1763426196143,27.6017323,130.43,130.39,0.67]
[1763426196335,10.0707723,130.42,130.37,8.50184313]
[1763426196503,9.4807723,130.4,130.37,8.50184313]
[1763426196709,27.6017323,130.38,130.36,8.50184313]
[1763426197035,27.6017323,130.38,130.34,9.17184313]
[1763426197416,28.1917323,130.38,130.34,8.50184313]
[1763426197612,28.1917323,130.38,130.34,9.17184313]
[1763426197843,2.2,130.44,130.35,0.67]
[1763426197844,27.6017323,130.39,130.35,0.67]
[1763426198207,18.12096,130.39,130.35,0.67]
[1763426198436,18.12096,130.39,130.35,18.65261543]
[1763426198649,28.1917323,130.41,130.35,18.65261543]
[1763426198843,28.1917323,130.41,130.36,0.67]
[1763426199142,28.1917323,130.41,130.36,9.17184313]
[1763426199327,9.4807723,130.4,130.36,9.17184313]
[1763426199530,9.4807723,130.39,130.35,8.50184313]
[1763426199840,9.4807723,130.38,130.34,8.50184313]
[1763426200017,9.4807723,130.37,130.34,0.67]
[1763426200215,18.12096,130.38,130.35,0.67]
[1763426200433,27.6017323,130.38,130.35,0.67]
[1763426200712,0.59,130.4,130.35,0.67]
[1763426200713,18.12096,130.39,130.35,0.67]
[1763426202125,27.6017323,130.39,130.35,0.67]
[1763426203045,9.4807723,130.38,130.34,9.17184313]
[1763426203345,9.4807723,130.37,130.34,0.67]
[1763426203638,9.4807723,130.36,130.33,8.50184313]
[1763426203837,9.4807723,130.37,130.33,8.50184313]
[1763426204036,9.4807723,130.37,130.34,8.50184313]
[1763426204037,10.0707723,130.37,130.34,8.50184313]
[1763426204554,9.4807723,130.37,130.34,8.50184313]
[1763426205942,9.4807723,130.37,130.34,9.17184313]
[1763426206332,9.4807723,130.37,130.34,8.50184313]
[1763426206533,9.4807723,130.35,130.33,8.50184313]
[1763426206755,9.4807723,130.37,130.34,0.67]
[1763426206957,9.4807723,130.37,130.34,9.17184313]
[1763426207247,18.12096,130.38,130.34,9.17184313]
[1763426207430,9.4807723,130.37,130.34,9.17184313]
[1763426207828,10.0707723,130.38,130.34,9.17184313]
[1763426208031,10.0707723,130.38,130.35,8.50184313]
[1763426209444,10.0707723,130.37,130.35,8.50184313]
[1763426209633,10.0707723,130.37,130.33,8.50184313]
[1763426209834,10.0707723,130.37,130.34,8.50184313]
[1763426210036,9.4807723,130.37,130.34,8.50184313]
[1763426210546,18.12096,130.38,130.35,0.67]
[1763426210547,9.4807723,130.38,130.35,0.67]
[1763426210763,0.59,130.42,130.35,9.17184313]
[1763426211048,0.59,130.42,130.33,32.12649986]
[1763426211049,9.4807723,130.41,130.36,9.17184313]
[1763426211421,0.59,130.42,130.37,9.17184313]
[1763426211422,10.0707723,130.42,130.37,9.17184313]
[1763426211627,9.4807723,130.41,130.37,8.50184313]
[1763426211826,10.0707723,130.41,130.37,8.50184313]
[1763426212040,10.0707723,130.41,130.36,9.17184313]
[1763426212243,9.4807723,130.4,130.37,8.50184313]
[1763426212441,9.4807723,130.39,130.36,9.17184313]
[1763426212838,28.1917323,130.4,130.37,8.50184313]
[1763426213052,28.1917323,130.4,130.36,9.17184313]
[1763426213234,27.6017323,130.4,130.36,9.17184313]
[1763426213556,18.12096,130.4,130.37,9.17184313]
[1763426213756,0.59,130.42,130.37,9.17184313]
[1763426213757,27.6017323,130.42,130.38,0.67]
[1763426213959,27.6017323,130.42,130.38,9.17184313]
[1763426214137,27.6017323,130.42,130.39,0.67]
[1763426214343,27.6017323,130.42,130.39,9.17184313]
[1763426214548,18.12096,130.42,130.39,9.17184313]
[1763426215246,18.12096,130.42,130.39,8.50184313]
[1763426215731,18.12096,130.42,130.39,9.17184313]
[1763426216645,18.12096,130.42,130.4,8.50184313]
[1763426216955,27.6017323,130.42,130.4,8.50184313]
[1763426217146,27.6017323,130.42,130.39,8.50184313]
[1763426217356,27.6017323,130.4,130.38,8.50184313]
[1763426217556,27.6017323,130.4,130.37,8.50184313]
[1763426217752,27.6017323,130.4,130.37,9.17184313]
[1763426217949,28.1917323,130.4,130.37,8.50184313]
[1763426218151,27.6017323,130.4,130.37,8.50184313]
[1763426218351,27.6017323,130.38,130.36,8.50184313]
[1763426218554,27.6017323,130.38,130.35,8.50184313]
[1763426218753,9.4807723,130.37,130.35,8.50184313]
[1763426219264,18.12096,130.38,130.35,8.50184313]
[1763426219265,28.1917323,130.38,130.35,8.50184313]
[1763426219843,27.6017323,130.38,130.36,8.50184313]
[1763426220148,102.7,130.43,130.36,8.50184313]
[1763426220149,28.1917323,130.4,130.36,8.50184313]
[1763426220349,9.4807723,130.39,130.36,8.50184313]
[1763426220550,27.6017323,130.4,130.36,8.50184313]
[1763426220862,18.71096,130.4,130.37,8.50184313]
[1763426221184,10.0707723,130.39,130.37,8.50184313]
[1763426221376,0.59,130.39,130.35,8.50184313]
[1763426221657,27.6017323,130.4,130.36,9.17184313]
[1763426221858,27.6017323,130.4,130.37,8.50184313]
[1763426222063,9.4807723,130.39,130.37,8.50184313]
[1763426222236,18.71096,130.4,130.37,8.50184313]
[1763426222436,18.12096,130.4,130.38,8.50184313]
[1763426222657,18.12096,130.41,130.38,9.17184313]
[1763426223041,27.6017323,130.41,130.38,9.17184313]
[1763426223239,18.12096,130.41,130.39,9.17184313]
[1763426223565,9.6807723,130.44,130.4,8.50184313]
[1763426223862,0.2,130.44,130.41,0.67]
[1763426224064,0.2,130.44,130.42,8.50184313]
[1763426224238,0.2,130.44,130.42,9.17184313]
[1763426224956,18.12096,130.43,130.42,9.17184313]
[1763426225169,18.12096,130.43,130.42,8.50184313]
[1763426225345,18.12096,130.43,130.41,32.12649986]
[1763426225749,18.12096,130.43,130.42,10.45882769]
[1763426225951,0.2,130.44,130.43,9.78882769]
[1763426226179,0.2,130.44,130.43,32.79649986]
[1763426226473,0.2,130.44,130.43,19.93959999]
[1763426226652,0.2,130.46,130.45,9.78882769]
[1763426227045,0.2,130.46,130.45,10.45882769]
[1763426227672,0.2,130.46,130.45,9.78882769]
[1763426228173,0.2,130.46,130.45,10.45882769]
[1763426229249,0.2,130.46,130.43,8.60269987]
[1763426229250,18.32096,130.46,130.43,8.60269987]
[1763426229457,28.5217323,130.46,130.43,8.60269987]
[1763426229769,27.8017323,130.46,130.43,9.78882769]
[1763426229992,27.8017323,130.46,130.43,10.45882769]
[1763426230278,18.12096,130.45,130.44,0.67]
[1763426231073,0.2,130.46,130.44,10.45882769]
[1763426231476,0.2,130.46,130.44,9.78882769]
[1763426231858,0.2,130.46,130.44,10.50882769]
[1763426232054,18.32096,130.46,130.45,0.72]
[1763426232451,18.32096,130.46,130.42,6.04139113]
[1763426232452,25.02235113,130.46,130.42,9.32269987]
[1763426232666,6.04139113,130.45,130.42,0.72]
[1763426232869,6.04139113,130.45,130.4,24.43291869]
[1763426233067,6.04139113,130.45,130.42,9.78882769]
[1763426233393,0.2,130.46,130.42,9.78882769]
[1763426233556,6.24139113,130.46,130.42,9.78882769]
[1763426233760,24.16235113,130.45,130.42,10.50882769]
[1763426234291,18.12096,130.45,130.43,0.72]
[1763426234590,18.12096,130.45,130.42,9.78882769]
[1763426234780,18.12096,130.45,130.42,10.50882769]
[1763426235191,24.16235113,130.45,130.42,10.50882769]
[1763426235362,24.16235113,130.45,130.42,9.78882769]
[1763426235762,18.12096,130.45,130.43,9.78882769]
[1763426235961,18.12096,130.45,130.43,10.50882769]
[1763426238087,24.16235113,130.45,130.42,8.60269987]
[1763426238295,24.16235113,130.45,130.41,18.39152756]
[1763426238296,0.69,130.44,130.41,18.39152756]
[1763426238477,6.73139113,130.44,130.41,18.39152756]
[1763426238800,6.04139113,130.44,130.41,8.60269987]
[1763426238973,18.12096,130.45,130.42,0.71]
[1763426238974,24.16235113,130.45,130.42,0.71]
[1763426239310,18.12096,130.45,130.43,9.78882769]
[1763426239889,0.2,130.46,130.45,9.78882769]
[1763426240412,18.32096,130.46,130.45,10.49882769]
[1763426240608,0.2,130.46,130.45,16.54021882]
[1763426240772,0.2,130.47,130.45,29.74291869]
[1763426240977,0.2,130.47,130.46,16.54021882]
[1763426242484,0.2,130.47,130.46,10.49882769]
[1763426243300,0.2,130.47,130.46,9.78882769]
[1763426243481,0.2,130.47,130.46,10.49882769]
[1763426244203,0.2,130.47,130.46,9.78882769]
[1763426244379,0.2,130.47,130.46,10.49882769]
[1763426244585,0.2,130.47,130.46,9.78882769]
[1763426246288,0.2,130.47,130.46,10.49882769]
[1763426247999,0.2,130.47,130.46,9.78882769]
[1763426249104,0.2,130.47,130.46,10.49882769]
[1763426249715,0.2,130.47,130.46,16.54021882]
[1763426249886,0.2,130.51,130.47,9.78882769]
[1763426250083,0.2,130.51,130.5,9.78882769]
[1763426250287,0.2,130.51,130.5,15.83021882]
[1763426250594,0.2,130.54,130.51,32.89882769]
[1763426250811,0.2,130.54,130.53,15.83021882]
[1763426251006,0.2,130.54,130.53,9.78882769]
[1763426251318,0.2,130.54,130.53,16.54021882]
[1763426252318,0.2,130.54,130.53,39.65021882]
[1763426252694,0.2,130.54,130.53,33.60882769]
[1763426252924,0.2,130.54,130.53,39.65021882]
[1763426253425,0.2,130.54,130.53,48.25291869]
[1763426253622,0.2,130.54,130.53,52.85291869]
[1763426253821,0.2,130.54,130.53,44.25021882]
[1763426254001,0.2,130.54,130.53,52.79956029]
[1763426255197,0.2,130.54,130.53,44.25021882]
[1763426255796,0.2,130.54,130.53,52.79956029]
[1763426256218,0.2,130.54,130.53,44.25021882]
[1763426256625,0.2,130.54,130.53,39.65021882]
[1763426256825,0.2,130.54,130.53,44.25021882]
[1763426257831,0.2,130.54,130.53,50.65171412]
[1763426258627,0.2,130.54,130.53,44.25021882]
[1763426258828,0.89,130.54,130.53,9.78882769]
[1763426259013,0.2,130.54,130.52,9.78882769]
[1763426259213,0.2,130.54,130.52,10.49882769]
[1763426259425,0.2,130.54,130.52,16.89936391]
[1763426260010,0.2,130.54,130.52,16.18936391]
[1763426260316,0.2,130.54,130.53,22.94075504]
[1763426260515,0.2,130.54,130.53,39.62021882]
[1763426261229,0.2,130.54,130.53,22.22834545]
[1763426261541,0.2,130.54,130.53,9.78882769]
[1763426261715,0.89,130.54,130.53,9.78882769]
[1763426261922,0.2,130.54,130.53,9.78882769]
[1763426262447,0.2,130.54,130.51,9.78882769]
[1763426262448,0.89,130.54,130.51,9.78882769]
[1763426262607,0.2,130.54,130.51,10.47882769]
[1763426262932,0.2,130.54,130.51,16.87695432]
[1763426263340,0.89,130.54,130.51,16.18695432]
[1763426263830,0.89,130.54,130.51,16.87695432]
[1763426264332,0.89,130.54,130.51,22.22834545]
[1763426264541,0.69,130.53,130.5,6.39812663]
[1763426264906,24.16235113,130.51,130.49,6.39812663]
[1763426265116,6.04139113,130.5,130.46,6.39812663]
[1763426265315,0.69,130.5,130.46,6.39812663]
[1763426265544,0.69,130.49,130.46,7.08812663]
[1763426265838,0.69,130.49,130.47,16.18695432]
[1763426266017,6.73139113,130.49,130.47,9.78882769]
[1763426266212,6.73139113,130.49,130.46,6.39812663]
[1763426266410,6.73139113,130.49,130.47,9.78882769]
[1763426266640,18.12096,130.51,130.47,9.78882769]
[1763426266841,0.69,130.5,130.47,16.18695432]
[1763426267046,6.73139113,130.5,130.47,9.78882769]
[1763426267228,6.73139113,130.5,130.47,16.18695432]
[1763426267539,6.73139113,130.49,130.47,16.18695432]
[1763426267914,24.85235113,130.51,130.47,16.87695432]
[1763426268117,102.9,130.54,130.5,9.78882769]
[1763426268118,6.04139113,130.53,130.5,9.78882769]
[1763426268328,0.69,130.52,130.5,9.78882769]
[1763426268542,18.12096,130.51,130.5,9.78882769]
[1763426269219,18.81096,130.51,130.5,9.78882769]
[1763426269916,18.12096,130.51,130.5,9.78882769]
[1763426270543,24.85235113,130.51,130.48,6.39812663]
[1763426270845,6.73139113,130.5,130.47,6.39812663]
[1763426271144,18.12096,130.51,130.48,9.78882769]
[1763426271332,24.16235113,130.51,130.48,16.87695432]
[1763426271537,24.85235113,130.51,130.48,16.18695432]
[1763426271732,0.69,130.5,130.48,16.18695432]
[1763426271933,0.69,130.5,130.48,9.78882769]
[1763426272129,6.04139113,130.5,130.48,9.78882769]
[1763426272325,6.04139113,130.49,130.47,6.39812663]
[1763426272526,6.04139113,130.48,130.47,6.39812663]
[1763426272741,6.73139113,130.48,130.46,16.18695432]
[1763426273128,0.69,130.47,130.46,6.39812663]
[1763426273447,6.73139113,130.47,130.46,6.39812663]
[1763426273615,6.73139113,130.47,130.45,16.18695432]
[1763426274326,18.12096,130.46,130.45,16.18695432]
[1763426276341,18.12096,130.46,130.45,9.78882769]
[1763426276526,18.12096,130.46,130.45,16.21511712]
[1763426277134,18.81096,130.48,130.45,16.21511712]
[1763426277448,18.81096,130.48,130.46,6.42628943]
[1763426277654,0.69,130.47,130.46,6.42628943]
[1763426277862,0.69,130.47,130.45,16.21511712]
[1763426278429,18.12096,130.48,130.45,16.21511712]
[1763426278430,0.69,130.5,130.45,16.21511712]
[1763426278644,18.12096,130.47,130.45,16.90511712]
[1763426278851,18.12096,130.47,130.46,6.42628943]
[1763426279252,18.12096,130.47,130.43,6.42628943]
[1763426279253,6.04139113,130.47,130.43,6.42628943]
[1763426279573,6.04139113,130.46,130.43,6.42628943]
[1763426279739,6.73139113,130.46,130.43,6.42628943]
[1763426279939,0.69,130.45,130.43,6.42628943]
[1763426280363,18.81096,130.48,130.44,16.52021882]
[1763426280667,18.12096,130.46,130.45,6.42877497]
[1763426281162,18.12096,130.46,130.45,0.69]
[1763426281326,18.12096,130.46,130.44,24.37956029]
[1763426281527,18.12096,130.46,130.44,25.06956029]
[1763426283054,0.69,130.52,130.45,6.73139113]
[1763426283234,0.69,130.52,130.48,22.26103267]
[1763426283645,18.12096,130.5,130.49,6.43081385]
[1763426283858,6.04139113,130.51,130.49,6.43081385]
[1763426284160,24.85235113,130.51,130.49,6.43081385]
[1763426284536,18.12096,130.49,130.46,5.04081385]
[1763426284844,18.12096,130.44,130.42,0.69]
[1763426285154,18.12096,130.44,130.43,9.78882769]
[1763426285857,18.12096,130.44,130.42,9.78882769]
[1763426286163,18.12096,130.44,130.42,10.47882769]
[1763426287847,18.12096,130.53,130.44,9.78882769]
[1763426288146,2.2,130.54,130.46,9.78882769]
[1763426288147,6.04139113,130.5,130.46,9.78882769]
[1763426288455,18.12096,130.48,130.46,15.83021882]
[1763426288651,18.12096,130.48,130.44,8.54934147]
[1763426288652,0.2,130.54,130.47,16.52021882]
[1763426288846,6.04139113,130.53,130.49,9.78882769]
[1763426289164,18.12096,130.51,130.49,15.83021882]
[1763426289335,18.12096,130.51,130.5,10.47882769]
[1763426289740,24.16235113,130.52,130.48,9.78882769]
[1763426290149,24.16235113,130.52,130.48,10.47882769]
[1763426291061,6.04139113,130.52,130.48,10.47882769]
[1763426291853,24.16235113,130.53,130.49,0.69]
[1763426292053,24.36235113,130.54,130.49,0.69]
[1763426292256,6.04139113,130.53,130.48,15.83021882]
[1763426292462,6.04139113,130.53,130.49,0.69]
[1763426292854,18.12096,130.5,130.49,10.47882769]
[1763426293664,18.12096,130.5,130.49,0.69]
[1763426294862,18.12096,130.48,130.46,9.78882769]
[1763426295049,18.12096,130.48,130.44,18.33816916]
[1763426295050,27.58125997,130.48,130.44,8.54934147]
[1763426295248,9.46029997,130.48,130.43,8.54934147]
[1763426295565,9.46029997,130.48,130.45,0.69]
[1763426296969,9.46029997,130.52,130.46,19.24912766]
[1763426297160,18.12096,130.49,130.47,9.46029997]
[1763426297356,0.2,130.54,130.48,19.24912766]
[1763426297568,0.2,130.54,130.51,9.78882769]
[1763426297770,18.12096,130.52,130.51,9.78882769]
[1763426297962,18.12096,130.52,130.51,10.47882769]
[1763426298673,18.12096,130.52,130.51,0.69]
[1763426298873,18.12096,130.52,130.51,10.47882769]
[1763426299265,18.12096,130.52,130.51,33.55882769]
[1763426299570,18.12096,130.52,130.51,10.47882769]
[1763426299767,18.12096,130.52,130.51,0.69]
[1763426299967,0.2,130.54,130.52,9.78882769]
[1763426300272,0.2,130.54,130.53,19.24912766]
[1763426300651,0.2,130.54,130.53,19.93912766]
[1763426301279,0.2,130.54,130.53,28.48846913]
[1763426301569,0.2,130.54,130.53,19.93912766]
[1763426301963,0.2,130.54,130.53,28.48846913]
[1763426302163,0.2,130.54,130.53,19.93912766]
[1763426303874,0.2,130.54,130.53,37.44183657]
[1763426305152,0.2,130.54,130.53,60.52183657]
[1763426305352,0.2,130.57,130.54,32.86882769]
[1763426305572,0.2,130.6,130.56,19.24912766]
[1763426305756,0.2,130.6,130.59,19.24912766]
[1763426306084,0.2,130.6,130.59,19.93912766]
[1763426308760,0.2,130.6,130.59,24.53912766]
[1763426309183,0.2,130.6,130.59,33.11970035]
[1763426309484,0.2,130.6,130.59,24.53912766]
[1763426310196,0.2,130.6,130.59,19.93912766]
[1763426310482,0.2,130.6,130.59,24.53912766]
[1763426311056,0.2,130.6,130.59,19.93912766]
[1763426311252,0.2,130.6,130.59,9.78882769]
[1763426311476,10.06029997,130.6,130.54,8.58057269]
[1763426311798,10.06029997,130.6,130.55,9.78882769]
[1763426312489,9.86029997,130.59,130.55,9.78882769]
[1763426312790,18.32096,130.6,130.57,9.78882769]
[1763426312959,18.32096,130.6,130.59,9.78882769]
[1763426315086,0.2,130.6,130.59,10.47882769]
[1763426315292,0.2,130.6,130.59,19.93912766]
[1763426316006,0.6,130.6,130.59,9.78882769]
[1763426316203,18.12096,130.57,130.54,9.46029997]
[1763426316416,18.12096,130.57,130.53,10.15029997]
[1763426316573,18.12096,130.57,130.54,0.69]
[1763426316774,9.76029997,130.57,130.52,0.69]
[1763426316991,9.46029997,130.57,130.52,0.69]
[1763426317215,9.46029997,130.57,130.52,10.15029997]
[1763426317387,9.46029997,130.55,130.5,10.15029997]
[1763426317584,9.46029997,130.54,130.5,0.69]
[1763426318100,9.46029997,130.54,130.51,9.78882769]
[1763426318700,9.46029997,130.55,130.5,9.78882769]
[1763426318891,9.46029997,130.56,130.52,9.78882769]
[1763426319097,0.3,130.57,130.52,9.78882769]
[1763426319292,18.12096,130.53,130.52,9.78882769]
[1763426320894,27.58125997,130.53,130.5,9.78882769]
[1763426321403,27.88125997,130.52,130.48,9.78882769]
[1763426321713,27.58125997,130.52,130.48,9.78882769]
[1763426322025,27.58125997,130.52,130.48,10.48882769]
[1763426322615,18.12096,130.52,130.48,10.48882769]
[1763426323680,18.12096,130.52,130.48,9.78882769]
[1763426323878,18.12096,130.52,130.48,10.48882769]
[1763426324409,27.88125997,130.52,130.48,10.48882769]
[1763426325584,27.58125997,130.52,130.44,8.58057269]
[1763426325792,9.76029997,130.51,130.47,9.78882769]
[1763426326985,9.46029997,130.51,130.47,0.7]
[1763426327185,9.76029997,130.51,130.47,0.7]
[1763426327382,18.12096,130.52,130.47,0.7]
[1763426327688,27.58125997,130.52,130.51,9.78882769]
[1763426327897,27.58125997,130.52,130.46,19.24912766]
[1763426328103,9.46029997,130.51,130.46,19.94912766]
[1763426328610,18.12096,130.52,130.48,9.78882769]
[1763426328808,27.58125997,130.52,130.48,9.78882769]
[1763426329025,27.58125997,130.52,130.48,10.48882769]
[1763426329311,9.46029997,130.51,130.48,10.48882769]
[1763426329989,27.58125997,130.52,130.48,10.48882769]
[1763426330209,27.58125997,130.52,130.48,9.78882769]
[1763426330414,9.76029997,130.51,130.47,9.78882769]
[1763426330589,9.46029997,130.51,130.47,9.78882769]
[1763426330803,18.12096,130.49,130.47,9.78882769]
[1763426331117,27.58125997,130.49,130.47,9.78882769]
[1763426331711,27.88125997,130.49,130.47,9.78882769]
[1763426332298,0.3,130.49,130.47,9.78882769]
[1763426332498,9.46029997,130.49,130.47,9.78882769]
[1763426332995,18.12096,130.48,130.47,9.78882769]
[1763426333418,18.12096,130.47,130.43,18.74087266]
[1763426333605,130.58125997,130.48,130.44,9.78882769]
[1763426333794,18.12096,130.45,130.44,9.78882769]
[1763426338434,9.46029997,130.47,130.44,0.7]
[1763426338806,27.58125997,130.47,130.44,0.7]
[1763426339314,27.58125997,130.47,130.42,19.94912766]
[1763426339526,27.58125997,130.47,130.43,0.7]
[1763426340309,18.12096,130.47,130.44,9.78882769]
[1763426340712,9.46029997,130.46,130.42,19.06940038]
[1763426341004,9.46029997,130.46,130.43,10.48882769]
[1763426341723,27.58125997,130.44,130.4,8.58057269]
[1763426341899,27.58125997,130.42,130.39,9.78882769]
[1763426342099,9.46029997,130.4,130.39,9.78882769]
[1763426342318,18.12096,130.39,130.35,0.1]
[1763426342638,9.46029997,130.37,130.35,0.1]
[1763426342833,9.46029997,130.37,130.35,9.88882769]
[1763426343142,9.46029997,130.37,130.35,0.1]
[1763426343299,9.46029997,130.37,130.35,9.88882769]
[1763426343498,9.46029997,130.37,130.35,0.1]
[1763426343715,9.46029997,130.36,130.35,0.1]
[1763426344827,18.12096,130.42,130.35,0.1]
[1763426345004,18.12096,130.42,130.35,10.58882769]
[1763426345205,9.46029997,130.4,130.35,20.04912766]
[1763426345407,18.12096,130.39,130.35,20.04912766]
[1763426345637,18.12096,130.39,130.36,0.7]
[1763426346019,27.88125997,130.39,130.35,9.88882769]
[1763426346219,9.46029997,130.38,130.35,10.58882769]
[1763426346521,9.46029997,130.39,130.37,9.78882769]
[1763426346725,18.42096,130.42,130.37,9.78882769]
[1763426346924,2.0,130.46,130.37,9.78882769]
[1763426346925,18.12096,130.38,130.37,9.78882769]
[1763426348412,9.76029997,130.41,130.37,9.78882769]
[1763426348709,18.12096,130.38,130.37,9.78882769]
[1763426351139,18.12096,130.38,130.36,9.78882769]
[1763426352336,9.46029997,130.39,130.35,0.1]
[1763426352517,9.76029997,130.39,130.35,0.1]
[1763426352729,9.76029997,130.39,130.35,0.8]
[1763426353228,18.12096,130.39,130.36,9.78882769]
[1763426353420,0.3,130.43,130.38,9.46029997]
[1763426353623,9.46029997,130.43,130.39,9.78882769]
[1763426353854,9.76029997,130.43,130.39,10.48882769]
[1763426354030,18.12096,130.4,130.39,10.48882769]
[1763426355432,6.04646499,130.44,130.39,16.53529268]
[1763426355654,18.12096,130.41,130.39,16.53529268]
[1763426355855,6.34646499,130.47,130.41,9.78882769]
[1763426356028,6.04646499,130.46,130.43,9.78882769]
[1763426357470,0.3,130.45,130.4,6.04646499]
[1763426357638,0.3,130.51,130.45,9.78882769]
[1763426357954,6.34646499,130.5,130.45,15.83529268]
[1763426358128,6.04646499,130.52,130.47,15.83529268]
[1763426358331,0.3,130.53,130.48,6.04646499]
[1763426358332,6.34646499,130.53,130.48,6.04646499]
[1763426358525,6.34646499,130.53,130.49,9.78882769]
[1763426358833,6.34646499,130.53,130.49,10.46882769]
[1763426359049,18.12096,130.5,130.49,10.46882769]
[1763426359353,6.34646499,130.53,130.49,9.78882769]
[1763426359560,18.12096,130.5,130.49,9.78882769]
[1763426359851,18.12096,130.5,130.49,10.46882769]
[1763426360060,6.34646499,130.53,130.49,10.46882769]
[1763426360266,0.3,130.53,130.49,10.46882769]
[1763426360466,18.12096,130.5,130.49,10.46882769]
[1763426360767,0.3,130.55,130.49,15.83529268]
[1763426360953,6.04646499,130.54,130.51,9.78882769]
[1763426361140,18.12096,130.52,130.51,9.78882769]
[1763426361340,6.34646499,130.53,130.47,10.46882769]
[1763426361562,24.16742499,130.52,130.49,9.78882769]
[1763426361766,24.16742499,130.52,130.47,6.72646499]
[1763426361952,24.46742499,130.52,130.48,10.46882769]
[1763426362155,24.16742499,130.53,130.48,16.51529268]
[1763426362370,24.16742499,130.53,130.48,6.72646499]
[1763426362569,24.46742499,130.53,130.48,6.04646499]
[1763426362869,24.46742499,130.53,130.5,9.78882769]
[1763426363244,0.3,130.52,130.49,9.78882769]
[1763426363572,18.12096,130.5,130.48,9.78882769]
[1763426364078,24.16742499,130.51,130.47,9.78882769]
[1763426364272,18.12096,130.48,130.47,10.46882769]
[1763426365558,6.04646499,130.51,130.47,10.46882769]
[1763426365750,6.04646499,130.51,130.48,0.68]
[1763426366069,18.12096,130.49,130.48,0.68]